bitfinex/quotes_ETHUSD_20250507
["timestamp","ask_amount","ask_price","bid_price","bid_amount"]
[1746644365587,6.31327127,1808.2,1807.6,1.40540359]
[1746644365788,5.53171517,1807.8,1807.6,0.7747]
[1746644366100,5.53137005,1807.9,1807.6,0.7747]
[1746644366817,5.53160916,1807.8,1807.6,0.7747]
[1746644367186,11.06289299,1807.9,1807.6,0.7747]
[1746644367489,11.06289299,1807.9,1807.4,0.7639]
[1746644367490,5.53189135,1807.7,1807.4,0.7639]
[1746644367816,5.53189135,1807.7,1807.4,6.29668223]
[1746644367978,0.7546,1807.8,1807.2,11.84523302]
[1746644368186,5.53278643,1807.5,1807.2,7.0759]
[1746644368386,5.53278643,1807.5,1807.2,0.7639]
[1746644368580,5.53275524,1807.5,1807.2,0.7639]
[1746644368893,11.06553283,1807.5,1807.2,0.7639]
[1746644369215,5.53275524,1807.5,1807.2,0.7639]
[1746644369705,5.53274051,1807.5,1807.2,0.7639]
[1746644369929,5.53236906,1807.6,1807.2,6.29731614]
[1746644370107,5.53201055,1807.7,1807.3,5.53310541]
[1746644370611,5.53222803,1807.6,1807.2,6.29712353]
[1746644371194,5.53201055,1807.7,1807.4,5.53278761]
[1746644371395,5.5317378,1807.8,1807.4,5.53276189]
[1746644371589,5.5317378,1807.8,1807.4,6.29311202]
[1746644371590,5.53182929,1807.8,1807.4,6.29311202]
[1746644371801,5.53236402,1807.6,1807.4,0.7604]
[1746644372711,11.06479436,1807.6,1807.4,0.7604]
[1746644372912,5.53236402,1807.6,1807.4,0.7604]
[1746644373220,11.06352069,1807.8,1807.4,6.29299062]
[1746644373379,5.53201512,1807.7,1807.4,0.7604]
[1746644373719,5.53143309,1807.9,1807.4,6.29304616]
[1746644373920,5.53170683,1807.8,1807.4,6.29304616]
[1746644374102,5.53167937,1807.8,1807.5,5.53236459]
[1746644374299,5.53143309,1807.9,1807.5,5.53236459]
[1746644374602,5.53143309,1807.9,1807.5,5.53232916]
[1746644374802,5.53164002,1807.8,1807.5,5.53232916]
[1746644375314,5.52953681,1808.5,1808.2,0.8223]
[1746644375527,5.52993868,1808.4,1808.2,0.8223]
[1746644376389,5.52962723,1808.5,1808.2,0.8223]
[1746644377236,5.5291863,1808.6,1808.2,6.35241201]
[1746644377408,5.5291863,1808.6,1808.2,0.8223]
[1746644377609,5.52965841,1808.5,1808.2,0.8223]
[1746644378107,5.52933546,1808.6,1808.2,6.35261812]
[1746644378434,5.52951533,1808.5,1808.2,0.8223]
[1746644378596,5.52951533,1808.5,1808.2,6.35265475]
[1746644378931,5.52951533,1808.5,1808.2,0.8223]
[1746644379130,5.52951533,1808.5,1808.2,6.35265428]
[1746644379734,0.761,1808.8,1808.2,6.35265428]
[1746644380036,5.52925942,1808.6,1808.2,6.35265428]
[1746644380732,5.52902065,1808.7,1808.3,5.52993205]
[1746644381031,5.52914336,1808.6,1808.3,5.52993205]
[1746644381219,5.52914336,1808.6,1808.2,0.8223]
[1746644381220,5.52914336,1808.6,1808.2,6.35249086]
[1746644381717,5.52914336,1808.6,1808.2,11.88265558]
[1746644381917,5.52914336,1808.6,1808.2,6.35246472]
[1746644382227,5.53049187,1808.2,1807.8,0.7765]
[1746644382405,5.53049187,1808.2,1807.8,7.30800225]
[1746644382596,5.53049187,1808.2,1807.8,7.72570714]
[1746644383411,5.53049187,1808.2,1807.8,2.19416601]
[1746644383412,5.53068686,1808.1,1807.8,2.19416601]
[1746644384830,5.53068686,1808.1,1807.8,7.7257457]
[1746644385933,11.06113541,1808.2,1807.8,7.7257457]
[1746644386110,11.06164528,1808.1,1807.8,2.19416601]
[1746644386294,5.53073706,1808.1,1807.8,2.19416601]
[1746644386498,5.53073706,1808.1,1807.8,7.72564526]
[1746644386798,5.53073706,1808.1,1807.8,2.19416601]
[1746644387398,5.53073706,1808.1,1807.8,3.75416601]
[1746644390339,5.53073706,1808.1,1807.9,1.56]
[1746644391236,5.53097345,1808.0,1807.9,1.56]
[1746644391744,5.53158535,1807.8,1807.7,1.56]
[1746644391948,5.52947718,1808.5,1807.7,1.56]
[1746644391949,5.52893696,1808.7,1808.4,0.8157]
[1746644392119,5.52883916,1808.7,1808.4,0.8157]
[1746644392312,5.52865082,1808.8,1808.4,1.45027493]
[1746644392526,5.52868893,1808.8,1808.4,1.45027493]
[1746644392838,5.52900574,1808.7,1808.4,0.8157]
[1746644393141,5.52944429,1808.5,1808.2,0.8157]
[1746644393437,6.30626773,1808.7,1808.2,0.8157]
[1746644393738,6.30626773,1808.7,1808.3,5.52993284]
[1746644393936,6.30626773,1808.7,1808.3,6.72304014]
[1746644394544,0.7773,1808.7,1808.3,6.72304014]
[1746644395542,0.7773,1808.7,1808.4,5.52971912]
[1746644396345,0.7773,1808.7,1808.3,6.72296758]
[1746644396503,6.30626655,1808.7,1808.3,6.72296758]
[1746644397137,6.30626655,1808.7,1808.3,6.72295211]
[1746644397441,0.7773,1808.7,1808.4,5.52973783]
[1746644397638,6.30615422,1808.7,1808.3,6.72295211]
[1746644398945,0.7773,1808.7,1808.3,6.72295211]
[1746644399236,5.52936009,1808.6,1808.3,1.1931073]
[1746644399440,5.5297122,1808.5,1808.2,1.56]
[1746644400037,5.52926844,1808.6,1808.2,7.09034672]
[1746644400243,6.30635353,1808.7,1808.2,7.09015859]
[1746644400452,6.30635353,1808.7,1808.3,0.8226]
[1746644400453,5.52954742,1808.5,1808.3,0.8226]
[1746644400630,5.52976967,1808.4,1808.2,1.56]
[1746644400936,5.52964514,1808.5,1808.2,1.56]
[1746644401313,5.52896777,1808.7,1808.3,5.5298953]
[1746644401845,5.52874697,1808.8,1808.4,5.52959685]
[1746644402030,5.52871695,1808.8,1808.5,0.7589]
[1746644402238,5.52871043,1808.8,1808.5,0.7589]
[1746644402436,0.7664,1808.9,1808.3,0.8059]
[1746644402611,0.7664,1808.9,1808.2,1.56]
[1746644402612,5.53005585,1808.3,1808.2,1.56]
[1746644402812,5.53005585,1808.3,1808.0,1.56]
[1746644402813,5.53034539,1808.3,1808.0,1.56]
[1746644403017,5.53048744,1808.2,1808.0,1.56]
[1746644403560,5.53048744,1808.2,1807.9,0.8059]
[1746644403561,5.53066755,1808.1,1807.9,0.8059]
[1746644403771,5.53199503,1807.7,1807.5,5.251387]
[1746644403976,6.295,1808.0,1807.5,3.691387]
[1746644404180,5.53148314,1807.9,1807.5,9.22378448]
[1746644404336,5.53148314,1807.9,1807.5,9.74892318]
[1746644404537,6.295,1808.0,1807.7,0.7928]
[1746644404779,6.295,1808.0,1807.7,7.88456438]
[1746644404937,6.295,1808.0,1807.7,2.3528]
[1746644405137,6.295,1808.0,1807.8,3.691387]
[1746644405656,6.31631417,1808.3,1807.8,3.691387]
[1746644405657,3.0,1808.4,1807.8,3.691387]
[1746644406042,5.53108668,1808.0,1807.8,3.691387]
[1746644406243,5.53127938,1807.9,1807.8,3.691387]
[1746644406466,5.53108668,1808.0,1807.8,3.691387]
[1746644406671,5.53127938,1807.9,1807.8,3.691387]
[1746644406852,6.29017938,1807.9,1807.8,3.691387]
[1746644407171,6.296,1808.0,1807.8,3.691387]
[1746644407371,5.53127938,1807.9,1807.8,3.691387]
[1746644407549,11.82717215,1808.0,1807.8,3.691387]
[1746644407753,5.53127938,1807.9,1807.8,3.691387]
[1746644407947,11.82718508,1808.0,1807.8,3.691387]
[1746644408387,6.296,1808.0,1807.8,0.7969]
[1746644408537,11.06040763,1808.3,1807.9,5.53107808]
[1746644408741,5.53063907,1808.2,1807.8,0.7969]
[1746644408949,5.53063907,1808.2,1807.8,11.85995129]
[1746644409186,5.53016512,1808.3,1807.9,5.53116655]
[1746644409488,5.52993069,1808.4,1808.0,0.7797]
[1746644409637,5.52930125,1808.6,1808.2,5.53026338]
[1746644409837,5.52831914,1808.9,1808.5,5.52919586]
[1746644410078,5.52831914,1808.9,1808.6,0.7797]
[1746644410794,5.52865633,1808.8,1808.5,1.56]
[1746644410976,5.52895408,1808.7,1808.5,1.56]
[1746644411269,5.52867372,1808.8,1808.5,1.56]
[1746644412073,5.52893472,1808.7,1808.5,1.56]
[1746644412370,0.8219,1808.9,1808.2,2.3528]
[1746644412540,5.53066755,1808.1,1807.6,5.5320692]
[1746644412742,5.53138909,1807.9,1807.6,0.8017]
[1746644412941,5.53189135,1807.7,1807.4,0.8017]
[1746644413286,5.53233419,1807.6,1807.3,3.691387]
[1746644413454,5.53196285,1807.7,1807.3,9.22436524]
[1746644413660,5.53231201,1807.6,1807.3,3.691387]
[1746644413861,5.53231201,1807.6,1807.3,9.22449392]
[1746644414046,5.53196243,1807.7,1807.3,3.691387]
[1746644414249,5.53196243,1807.7,1807.3,9.22427528]
[1746644414550,6.296,1807.9,1807.4,0.805]
[1746644414879,11.82737887,1807.9,1807.5,5.53229785]
[1746644415067,5.53218834,1807.7,1807.4,0.805]
[1746644415994,5.53172842,1807.8,1807.4,6.33754833]
[1746644416288,6.296,1807.9,1807.6,6.33045461]
[1746644416448,11.82728487,1807.9,1807.6,0.7984]
[1746644416648,5.53168634,1807.8,1807.6,0.7984]
[1746644416880,5.53168634,1807.8,1807.4,5.53262383]
[1746644416881,5.53190522,1807.7,1807.4,0.8283]
[1746644417049,5.53260852,1807.5,1807.2,0.8083]
[1746644417241,5.53171736,1807.8,1807.2,1.85362939]
[1746644417447,5.53163483,1807.8,1807.5,0.8083]
[1746644417649,6.296,1807.9,1807.6,5.53209346]
[1746644417889,6.296,1807.9,1807.5,0.8083]
[1746644418089,8.53025632,1808.3,1807.9,0.8083]
[1746644418257,5.52989746,1808.4,1808.0,5.53075502]
[1746644418456,5.53041886,1808.2,1807.9,0.8083]
[1746644418658,5.53097345,1808.0,1807.5,3.0]
[1746644418877,5.53097345,1808.0,1807.6,6.34035102]
[1746644419070,5.5307025,1808.1,1807.7,5.5316987]
[1746644419378,5.53007421,1808.3,1807.9,0.7907]
[1746644419543,0.8315,1809.1,1808.0,1.3407]
[1746644419748,5.52872211,1808.8,1808.3,6.32050462]
[1746644419984,5.52889045,1808.7,1808.3,6.32050462]
[1746644420202,5.52925047,1808.6,1808.3,0.7907]
[1746644420358,5.52975005,1808.4,1808.1,0.7991]
[1746644420694,5.53061003,1808.2,1807.7,5.53174363]
[1746644420865,5.53066316,1808.2,1807.7,6.71803159]
[1746644421181,5.53066316,1808.2,1807.8,5.53157299]
[1746644421385,0.7693,1809.0,1808.5,5.529145]
[1746644421552,5.52806642,1809.0,1808.4,0.8255]
[1746644421890,5.52837222,1808.9,1808.5,5.52932037]
[1746644422194,5.52657427,1809.5,1808.5,5.52932037]
[1746644422195,5.52602661,1809.7,1809.0,0.7892]
[1746644422358,5.52710897,1809.3,1808.8,0.7892]
[1746644422696,5.52783224,1809.1,1808.8,0.7892]
[1746644422849,5.52808405,1809.0,1808.8,0.7892]
[1746644423488,5.52913856,1808.6,1808.2,0.7837]
[1746644423686,11.8125272,1808.8,1808.2,0.7837]
[1746644423862,11.8125272,1808.8,1807.8,3.691387]
[1746644423863,6.31775632,1808.7,1807.8,3.691387]
[1746644424067,5.52970835,1808.5,1808.0,5.53076437]
[1746644424406,5.52986146,1808.4,1808.0,5.53076437]
[1746644424569,5.52955415,1808.5,1808.0,0.05530418]
[1746644424765,5.53031032,1808.3,1807.9,0.8291]
[1746644425091,9.31774512,1808.7,1807.9,0.8291]
[1746644425285,5.52930818,1808.6,1808.1,5.53038473]
[1746644425488,5.52930818,1808.6,1808.1,6.35964658]
[1746644425663,5.52955558,1808.5,1808.1,6.35964658]
[1746644425867,5.52930818,1808.6,1808.2,5.53025548]
[1746644426087,5.52930818,1808.6,1808.2,5.58555636]
[1746644426274,5.52930818,1808.6,1808.2,5.53025548]
[1746644426487,11.05870392,1808.6,1808.1,6.35956993]
[1746644426798,6.284,1808.8,1808.1,6.35956993]
[1746644426799,11.81276687,1808.8,1808.4,0.7785]
[1746644426970,5.52934532,1808.6,1808.4,0.7785]
[1746644427171,5.52898193,1808.7,1808.4,0.7785]
[1746644427375,5.52886169,1808.7,1808.4,0.7785]
[1746644427573,5.52921232,1808.6,1808.4,0.7785]
[1746644427998,5.52898503,1808.7,1808.4,0.7785]
[1746644428378,11.8126416,1808.8,1808.4,1.40934105]
[1746644428686,5.52786045,1809.1,1808.5,5.58457916]
[1746644428913,5.52749939,1809.2,1808.8,5.52851623]
[1746644429115,5.52711283,1809.3,1808.8,5.52832805]
[1746644429431,5.52701469,1809.3,1808.9,5.58332242]
[1746644430153,5.52701469,1809.3,1809.0,0.8024]
[1746644430910,5.52700574,1809.3,1809.0,0.8024]
[1746644431111,5.52700574,1809.3,1809.0,1.4354426]
[1746644431438,5.52718015,1809.3,1809.0,1.4354426]
[1746644431643,11.81088842,1809.4,1809.0,6.96331946]
[1746644431828,5.52700074,1809.3,1809.0,1.4354426]
[1746644432235,6.284,1809.4,1809.0,1.4354426]
[1746644432236,5.52761041,1809.1,1809.0,0.8024]
[1746644432545,5.52761041,1809.1,1808.7,0.42221772]
[1746644432546,5.5281706,1809.0,1808.7,0.42221772]
[1746644432709,5.52874156,1808.8,1808.6,0.7694]
[1746644432907,5.52806528,1809.0,1808.6,6.29833783]
[1746644433145,5.52867474,1808.8,1808.6,0.7694]
[1746644433444,5.52806753,1809.0,1808.7,5.52881685]
[1746644433649,5.52777187,1809.1,1808.7,5.58391874]
[1746644433947,5.52793493,1809.0,1808.7,5.58391874]
[1746644434148,5.52742998,1809.2,1808.8,5.52848066]
[1746644434441,5.52777636,1809.1,1808.8,0.05527963]
[1746644435011,5.52777636,1809.1,1808.8,5.58378934]
[1746644435214,5.52741951,1809.2,1808.8,6.69503242]
[1746644435413,11.81075953,1809.4,1808.9,0.7614]
[1746644435613,5.52710527,1809.3,1808.9,6.28949649]
[1746644435919,5.52748201,1809.2,1808.9,0.7614]
[1746644436119,5.52791597,1809.0,1808.9,0.7614]
[1746644436517,5.52824436,1808.9,1808.7,1.20929826]
[1746644436743,6.284,1809.4,1808.8,5.52838549]
[1746644437014,6.284,1809.4,1809.0,0.8328]
[1746644437232,5.52721026,1809.3,1809.0,0.8328]
[1746644437918,5.52802649,1809.0,1808.8,0.7811]
[1746644438112,5.52822157,1808.9,1808.8,0.7811]
[1746644438855,5.52743598,1809.2,1808.8,0.7811]
[1746644439012,5.52743598,1809.2,1808.8,6.36473193]
[1746644439343,5.52744113,1809.2,1808.8,6.98129184]
[1746644439542,5.52744113,1809.2,1808.8,6.98110697]
[1746644439747,5.52765109,1809.1,1808.8,1.45279044]
[1746644439953,5.52795303,1809.0,1808.8,0.7811]
[1746644440135,5.52778678,1809.1,1808.8,0.7811]
[1746644440543,5.52822157,1808.9,1808.8,0.7811]
[1746644440719,5.52812257,1809.0,1808.8,0.7811]
[1746644441051,5.52806391,1809.0,1808.8,0.7811]
[1746644441236,11.056234,1809.0,1808.8,0.7811]
[1746644441425,5.52806391,1809.0,1808.8,0.7811]
[1746644441823,5.52862652,1808.8,1808.6,0.7758]
[1746644442020,5.52944429,1808.5,1808.4,0.7758]
[1746644442225,5.52944429,1808.5,1808.0,3.691387]
[1746644442226,5.53041495,1808.2,1808.0,4.467187]
[1746644442451,5.53018821,1808.3,1808.1,0.4467187]
[1746644442658,5.53066755,1808.1,1808.0,3.691387]
[1746644442965,17.34189956,1808.4,1808.0,9.22225985]
[1746644443121,17.34188505,1808.4,1808.1,0.7649]
[1746644443325,11.81189458,1808.4,1808.1,0.7649]
[1746644443547,5.53035735,1808.3,1808.1,0.7649]
[1746644443855,6.33979704,1808.3,1808.0,3.691387]
[1746644444062,5.53048734,1808.2,1808.0,3.691387]
[1746644444230,5.53019704,1808.3,1808.0,4.0605257]
[1746644444433,6.282,1808.4,1808.0,9.59146203]
[1746644444434,11.81195348,1808.4,1808.0,9.59146203]
[1746644444955,11.81195348,1808.4,1808.1,6.38014062]
[1746644444956,6.282,1808.4,1808.1,6.38014062]
[1746644445472,5.53008488,1808.3,1808.1,0.7942]
[1746644446061,5.53111093,1808.0,1807.8,0.7881]
[1746644446228,5.5305564,1808.2,1807.8,6.74071121]
[1746644446427,5.53023442,1808.3,1807.9,5.58641786]
[1746644446827,5.53023442,1808.3,1807.9,5.58657516]
[1746644447028,5.53023442,1808.3,1807.9,5.53126273]
[1746644447223,11.06057952,1808.3,1807.9,5.53126273]
[1746644447458,5.53079237,1808.1,1807.8,0.7881]
[1746644447665,5.53055165,1808.2,1807.8,6.31968053]
[1746644447860,5.53021887,1808.3,1807.9,5.58646972]
[1746644448164,11.06051052,1808.3,1807.9,5.58646972]
[1746644448337,11.06053857,1808.3,1807.9,5.5311618]
[1746644448665,5.53021887,1808.3,1808.0,0.55311618]
[1746644448824,11.81185569,1808.4,1808.0,6.0840759]
[1746644449024,17.34185061,1808.4,1808.0,6.0840759]
[1746644449461,5.53008455,1808.3,1808.0,0.55311618]
[1746644449866,5.5304669,1808.2,1807.8,6.31950692]
[1746644450063,5.5304669,1808.2,1807.8,6.31962453]
[1746644450359,5.53021626,1808.3,1807.9,5.53121015]
[1746644450550,5.53021626,1808.3,1807.9,5.58651561]
[1746644450725,5.53021626,1808.3,1807.8,6.31950766]
[1746644450726,5.53040934,1808.2,1807.8,6.31950766]
[1746644450928,5.53040934,1808.2,1807.9,0.63195077]
[1746644451861,5.53040934,1808.2,1807.8,0.7881]
[1746644452066,5.5307879,1808.1,1807.8,0.7881]
[1746644452456,5.53115697,1808.0,1807.8,0.7881]
[1746644452657,5.5307879,1808.1,1807.8,0.7881]
[1746644453258,11.06173123,1808.1,1807.8,0.7881]
[1746644453460,5.53116306,1808.0,1807.8,0.7881]
[1746644453636,5.53078766,1808.1,1807.8,6.31966445]
[1746644454155,5.53078766,1808.1,1807.8,0.7881]
[1746644454865,0.7956,1808.3,1807.8,0.7881]
[1746644455071,5.53097482,1808.0,1807.8,0.7881]
[1746644455256,11.06164408,1808.1,1807.8,0.7881]
[1746644455457,5.53127938,1807.9,1807.8,0.7881]
[1746644455656,5.53105008,1808.0,1807.8,0.7881]
[1746644455970,5.53158535,1807.8,1807.7,0.42217552]
[1746644456132,5.53127938,1807.9,1807.6,0.7635]
[1746644456337,5.53127938,1807.9,1807.6,1.39308603]
[1746644456759,5.53172899,1807.8,1807.6,1.39308603]
[1746644456959,5.53172899,1807.8,1807.6,0.7635]
[1746644457352,11.06282806,1807.9,1807.6,0.7635]
[1746644457546,5.53159842,1807.8,1807.6,0.7635]
[1746644457752,5.53127938,1807.9,1807.6,0.7635]
[1746644458476,11.06280152,1807.9,1807.6,0.7635]
[1746644458885,5.53127938,1807.9,1807.6,0.7635]
[1746644459194,5.53114707,1808.0,1807.6,1.39860995]
[1746644459488,5.53139818,1807.9,1807.6,1.81749579]
[1746644460276,5.53110344,1808.0,1807.6,7.404806]
[1746644460600,5.53129967,1807.9,1807.6,7.404806]
[1746644460808,5.53110344,1808.0,1807.6,7.404806]
[1746644461106,5.53129547,1807.9,1807.6,7.404806]
[1746644461307,5.53129547,1807.9,1807.6,1.81749579]
[1746644461613,5.53113454,1808.0,1807.6,7.4048661]
[1746644461907,5.53129701,1807.9,1807.6,7.4048661]
[1746644462076,5.53129701,1807.9,1807.7,0.74048661]
[1746644462259,6.282,1808.4,1807.7,0.74048661]
[1746644462260,6.282,1808.4,1807.7,5.50202575]
[1746644462560,0.8199,1808.9,1808.3,0.8089]
[1746644462809,5.52875118,1808.8,1808.4,0.05529005]
[1746644463059,5.52957452,1808.5,1808.3,0.8089]
[1746644463283,5.52975005,1808.4,1808.3,0.8089]
[1746644463498,5.52957452,1808.5,1808.3,0.8089]
[1746644463965,5.5292728,1808.6,1808.3,0.8089]
[1746644464164,5.52959166,1808.5,1808.1,5.53044297]
[1746644464366,5.53012905,1808.3,1808.1,0.8181]
[1746644464566,5.53036168,1808.2,1807.9,0.8181]
[1746644464768,0.778,1808.5,1808.0,5.5861803]
[1746644465060,8.52859053,1808.8,1808.0,5.5861803]
[1746644465061,5.52927607,1808.6,1808.2,5.53024886]
[1746644465273,5.52927607,1808.6,1808.2,6.71881378]
[1746644465472,5.52927607,1808.6,1808.2,6.77411103]
[1746644465674,5.52888323,1808.7,1808.4,5.52968171]
[1746644465964,5.52888323,1808.7,1808.4,0.86819358]
[1746644466176,5.52868699,1808.8,1808.4,6.39784463]
[1746644466501,5.52884368,1808.7,1808.5,0.63978446]
[1746644466801,5.52868699,1808.8,1808.5,0.63978446]
[1746644467101,5.52883909,1808.7,1808.5,0.63978446]
[1746644467553,12.65206372,1809.0,1808.5,5.58445645]
[1746644467794,11.05683458,1808.9,1808.5,5.52916776]
[1746644468105,5.52884144,1808.7,1808.4,0.8129]
[1746644468261,5.52944429,1808.5,1808.4,0.8129]
[1746644468461,5.52900838,1808.7,1808.4,0.8129]
[1746644468882,5.52978128,1808.4,1808.2,0.8288]
[1746644469066,5.52956891,1808.5,1808.2,0.8288]
[1746644469274,5.52983149,1808.4,1808.2,0.8288]
[1746644469482,5.52956891,1808.5,1808.2,1.52003504]
[1746644469696,5.52956891,1808.5,1808.2,1.46473717]
[1746644469869,5.52934665,1808.6,1808.2,6.99507908]
[1746644470072,8.11321338,1810.5,1808.5,5.52923085]
[1746644470073,5.52836609,1808.9,1808.5,5.52923085]
[1746644470398,5.52856784,1808.8,1808.4,6.32468065]
[1746644470567,5.52883738,1808.7,1808.4,7.56514049]
[1746644470767,5.52869785,1808.8,1808.4,7.56514049]
[1746644470969,5.52869785,1808.8,1808.5,5.5294436]
[1746644471170,5.52802589,1809.0,1808.5,0.55]
[1746644471367,5.52835915,1808.9,1808.7,0.7951]
[1746644471769,5.52807664,1809.0,1808.7,0.7951]
[1746644471994,6.318,1809.2,1808.7,6.32370895]
[1746644472196,6.318,1809.2,1808.8,6.21605893]
[1746644472197,11.05494081,1809.2,1808.8,6.21605893]
[1746644472396,5.52681572,1809.4,1809.0,5.52786646]
[1746644472673,5.52681572,1809.4,1809.1,0.7639]
[1746644472868,5.52681572,1809.4,1809.1,6.29147562]
[1746644473074,11.84456377,1809.5,1809.1,6.29147562]
[1746644473268,5.5268271,1809.4,1809.1,0.7639]
[1746644473469,5.52613047,1809.6,1809.3,5.52683585]
[1746644473670,10.35284837,1809.7,1809.3,5.52683585]
[1746644473881,5.52611111,1809.6,1809.3,0.05526369]
[1746644474087,10.35282271,1809.7,1809.3,5.52699724]
[1746644474325,4.8269007,1809.7,1809.4,10.34328677]
[1746644474517,4.8269007,1809.7,1809.6,0.7904]
[1746644475081,5.52618227,1809.6,1809.4,0.7904]
[1746644475286,5.52750698,1809.2,1809.0,0.7904]
[1746644475537,5.52713283,1809.3,1809.0,0.7904]
[1746644475698,5.52733249,1809.2,1809.0,0.7904]
[1746644475904,5.52715082,1809.3,1809.0,1.42226215]
[1746644476114,5.52659631,1809.5,1809.0,6.9501376]
[1746644476286,5.52681213,1809.4,1809.0,6.9501376]
[1746644476486,0.8035,1809.6,1808.8,6.867]
[1746644476487,5.52757312,1809.2,1808.8,6.35678003]
[1746644476689,5.52822157,1808.9,1808.7,0.40801248]
[1746644476887,14.84284528,1809.7,1808.7,4.76153914]
[1746644477086,5.52713894,1809.3,1808.9,6.35653331]
[1746644477300,5.52713894,1809.3,1808.9,0.8284]
[1746644477497,11.05441202,1809.3,1808.9,1.51907305]
[1746644477792,11.05441202,1809.3,1808.9,7.10250427]
[1746644477793,5.52702676,1809.3,1808.9,7.10250427]
[1746644477993,5.52689309,1809.4,1808.9,7.10237695]
[1746644478327,5.52656587,1809.5,1809.0,5.52779125]
[1746644478623,6.317,1809.7,1809.1,0.55]
[1746644478809,5.52589663,1809.7,1809.3,0.832]
[1746644479027,5.52626564,1809.6,1809.3,0.832]
[1746644479229,5.52589663,1809.7,1809.3,6.41421626]
[1746644479401,5.5256589,1809.8,1809.4,5.52646354]
[1746644479595,5.5256589,1809.8,1809.5,6.13426465]
[1746644479829,5.52578355,1809.7,1809.5,0.55264635]
[1746644480035,5.52578355,1809.7,1809.3,6.35879947]
[1746644480199,5.52560584,1809.8,1809.4,5.58194743]
[1746644480535,5.52534209,1809.9,1809.5,5.52638834]
[1746644480924,11.80401683,1810.0,1809.5,5.52620804]
[1746644481232,5.52521602,1809.9,1809.4,0.55]
[1746644481407,5.52561507,1809.8,1809.4,6.69085656]
[1746644481596,5.52521602,1809.9,1809.5,5.5263838]
[1746644482240,5.52504579,1810.0,1809.5,5.52625973]
[1746644482407,5.52522948,1809.9,1809.7,0.7762]
[1746644482622,5.52509481,1810.0,1809.7,0.7762]
[1746644482803,5.52593881,1809.7,1809.4,1.3262]
[1746644483007,5.52547242,1809.8,1809.4,7.53819528]
[1746644483233,5.52586622,1809.7,1809.4,2.01150431]
[1746644483431,5.52576511,1809.8,1809.4,1.46150431]
[1746644483632,5.52538297,1809.9,1809.5,5.52625466]
[1746644483844,5.5252632,1809.9,1809.6,0.60787854]
[1746644484145,5.5252632,1809.9,1809.6,0.55262547]
[1746644484444,5.52464404,1810.1,1809.8,0.8236]
[1746644484643,5.52488371,1810.0,1809.8,0.8236]
[1746644484821,5.52476562,1810.1,1809.8,0.8236]
[1746644485005,5.52497508,1810.0,1809.8,0.8236]
[1746644485206,5.52476562,1810.1,1809.8,0.8236]
[1746644485400,5.52516713,1809.9,1809.8,0.8236]
[1746644485630,5.52516713,1809.9,1809.5,10.28774934]
[1746644485631,0.7983,1810.0,1809.5,1.56]
[1746644485837,5.52608311,1809.6,1809.5,1.56]
[1746644486031,5.52650495,1809.5,1809.3,0.8296]
[1746644486238,5.52686896,1809.4,1809.1,2.3339]
[1746644486450,5.52580921,1809.7,1809.1,3.12006569]
[1746644486451,5.52701254,1809.3,1809.1,3.12006569]
[1746644486657,5.52730488,1809.2,1809.1,1.56]
[1746644487250,5.52822157,1808.9,1808.8,1.56]
[1746644487553,5.52794144,1809.0,1808.8,1.56]
[1746644487554,5.52809622,1809.0,1808.8,1.56]
[1746644487759,5.52748534,1809.2,1808.8,7.08842703]
[1746644487927,7.0704,1809.8,1809.0,0.8023]
[1746644488129,5.52648255,1809.5,1809.1,7.14264402]
[1746644488329,5.52648255,1809.5,1809.2,0.7142644]
[1746644488843,5.52688736,1809.4,1809.2,0.7142644]
[1746644489048,5.52699939,1809.3,1809.2,1.56]
[1746644489254,5.52688736,1809.4,1809.2,1.56]
[1746644489663,5.52699939,1809.3,1809.2,1.56]
[1746644490070,5.52811801,1809.0,1808.7,2.76814864]
[1746644490251,5.52811801,1809.0,1808.8,0.27681486]
[1746644490565,5.5285272,1808.8,1808.7,1.56]
[1746644490750,5.52822157,1808.9,1808.6,1.56]
[1746644490933,5.52806531,1809.0,1808.6,7.56216958]
[1746644491133,5.52850379,1808.9,1808.6,1.97790169]
[1746644491464,5.52853891,1808.8,1808.6,1.97790169]
[1746644491642,5.52883286,1808.7,1808.6,2.25508186]
[1746644492042,5.52935328,1808.6,1808.4,1.56]
[1746644492239,5.52935328,1808.6,1808.3,1.56]
[1746644492561,5.52935328,1808.6,1808.3,1.96931638]
[1746644492752,5.52935328,1808.6,1808.3,7.4993717]
[1746644493151,5.52898903,1808.7,1808.3,7.4993717]
[1746644493152,11.05810121,1808.7,1808.3,7.4993717]
[1746644493362,5.52898903,1808.7,1808.4,0.74993717]
[1746644493572,5.52924882,1808.6,1808.4,0.74993717]
[1746644493731,5.52944429,1808.5,1808.4,1.56]
[1746644493929,5.52924882,1808.6,1807.9,1.56]
[1746644493930,5.97150122,1808.6,1807.9,1.56]
[1746644494127,5.52975005,1808.4,1807.6,0.8136]
[1746644494359,5.53170115,1807.8,1807.6,0.8136]
[1746644494628,5.53189135,1807.7,1807.6,0.4071968]
[1746644494831,5.53066755,1808.1,1807.5,5.53245233]
[1746644495072,5.531437,1807.9,1807.6,0.55324523]
[1746644495247,6.277,1808.3,1807.6,6.08542935]
[1746644495445,5.53097738,1808.0,1807.6,6.14065194]
[1746644495655,5.53097738,1808.0,1807.6,0.55324523]
[1746644495827,5.53129179,1807.9,1807.6,0.55324523]
[1746644496432,5.53193415,1807.7,1807.5,3.691387]
[1746644496738,5.53161854,1807.8,1807.5,3.691387]
[1746644496966,5.53135132,1807.9,1807.5,9.22374009]
[1746644497163,5.53091854,1808.1,1807.6,5.53192022]
[1746644497368,5.53091854,1808.1,1807.7,5.53188386]
[1746644497696,5.53091854,1808.1,1807.7,6.64379618]
[1746644497973,5.53091711,1808.1,1807.7,6.64379618]
[1746644498269,11.06187824,1808.1,1807.7,6.64379618]
[1746644498447,5.53100352,1808.0,1807.6,5.53199716]
[1746644498646,5.53135166,1807.9,1807.5,10.19112639]
[1746644498973,5.53100352,1808.0,1807.6,5.58748651]
[1746644498974,5.53113864,1808.0,1807.6,5.58748651]
[1746644499142,5.53113864,1808.0,1807.6,5.53217492]
[1746644499344,5.53113864,1808.0,1807.6,11.06417657]
[1746644499554,5.53113864,1808.0,1807.7,1.10641766]
[1746644499882,5.53113864,1808.0,1807.6,5.53199764]
[1746644500280,6.277,1808.3,1807.8,0.8246]
[1746644500591,5.52987487,1808.4,1808.0,5.53085769]
[1746644500759,5.52996396,1808.4,1808.0,7.09085769]
[1746644500961,11.80865605,1808.5,1808.1,6.23946354]
[1746644502466,5.529622,1808.5,1808.1,5.53053875]